fUSD/lending_fUSD_20260118
["ID","MTS","AMOUNT","RATE_DAILY","PERIOD"]
[402521406,1768695044336,-500.0,0.00016438,2]
[402521408,1768695044345,-500.0,0.00016438,2]
[402521409,1768695044354,-500.0,0.00016438,2]
[402521410,1768695044363,-500.0,0.00016438,2]
[402521412,1768695044372,-500.0,0.00016438,2]
[402521414,1768695044382,-504.09277044,0.00016438,2]
[402521416,1768695044391,-500.0,0.00016438,2]
[402521418,1768695044400,-865.68,0.00016438,2]
[402521420,1768695044409,-500.0,0.00016438,2]
[402521422,1768695044418,-503.21260793,0.00016438,2]
[402521424,1768695044428,-590.68,0.00016438,2]
[402521426,1768695044437,-520.49596302,0.00016438,2]
[402521428,1768695044447,-500.0,0.00016438,2]
[402521430,1768695044457,-500.0,0.00016438,2]
[402521432,1768695044466,-500.0,0.00016438,2]
[402521434,1768695044475,-500.0,0.00016438,2]
[402521436,1768695044485,-500.0,0.00016438,2]
[402521438,1768695044494,-500.0,0.00016438,2]
[402521440,1768695044503,-500.0,0.00016438,2]
[402521442,1768695044513,-500.0,0.00016438,2]
[402521444,1768695044522,-545.21641715,0.00016438,2]
[402521446,1768695044531,-151.0,0.00016438,2]
[402521448,1768695044540,-537.82,0.00016438,2]
[402521450,1768695044549,-500.0,0.00016438,2]
[402521452,1768695044557,-500.0,0.00016438,2]
[402521454,1768695044567,-500.0,0.00016438,2]
[402521456,1768695044575,-500.0,0.00016438,2]
[402521457,1768695044586,-500.0,0.00016438,2]
[402521459,1768695044595,-618.27,0.00016438,2]
[402521461,1768695044605,-1105.29,0.00016438,2]
[402521463,1768695044614,-505.03650539,0.00016438,2]
[402521465,1768695044624,-500.0,0.00016438,2]
[402521468,1768695044633,-500.0,0.00016438,2]
[402521469,1768695044643,-500.0,0.00016438,2]
[402521471,1768695044652,-500.0,0.00016438,2]
[402521473,1768695044661,-500.0,0.00016438,2]
[402521475,1768695044670,-500.0,0.00016438,2]
[402521477,1768695044680,-527.72,0.00016438,2]
[402521479,1768695044690,-834.51,0.00016438,2]
[402521481,1768695044699,-500.0,0.00016438,2]
[402521483,1768695044708,-563.52,0.00016438,2]
[402521485,1768695044717,-500.0,0.00016438,2]
[402521487,1768695044726,-500.0,0.00016438,2]
[402521489,1768695044735,-500.0,0.00016438,2]
[402521491,1768695044745,-500.0,0.00016438,2]
[402521493,1768695044754,-500.0,0.00016438,2]
[402521495,1768695044764,-500.0,0.00016438,2]
[402521497,1768695044773,-500.0,0.00016438,2]
[402521499,1768695044783,-851.03,0.00016438,2]
[402521501,1768695044792,-500.0,0.00016438,2]
[402521504,1768695044802,-500.0,0.00016438,2]
[402521506,1768695044812,-500.0,0.00016438,2]
[402521507,1768695044821,-500.0,0.00016438,2]
[402521509,1768695044831,-546.96,0.00016438,2]
[402521511,1768695044840,-814.0,0.00016438,2]
[402521513,1768695044850,-500.0,0.00016438,2]
[402521515,1768695044859,-500.0,0.00016438,2]
[402521517,1768695044868,-504.26924072,0.00016438,2]
[402521519,1768695044878,-500.0,0.00016438,2]
[402521521,1768695044887,-500.0,0.00016438,2]
[402521523,1768695044896,-559.46,0.00016438,2]
[402521525,1768695044905,-500.0,0.00016438,2]
[402521527,1768695044915,-500.0,0.00016438,2]
[402521529,1768695044924,-500.0,0.00016438,2]
[402521531,1768695044933,-500.0,0.00016438,2]
[402521533,1768695044942,-500.0,0.00016438,2]
[402521535,1768695044951,-655.13,0.00016438,2]
[402521537,1768695044961,-514.50983639,0.00016438,2]
[402521539,1768695044970,-500.0,0.00016438,2]
[402521541,1768695044979,-500.0,0.00016438,2]
[402521543,1768695044994,-500.0,0.00016438,2]
[402521545,1768695045005,-500.0,0.00016438,2]
[402521547,1768695045014,-500.0,0.00016438,2]
[402521549,1768695045024,-500.0,0.00016438,2]
[402521551,1768695045033,-500.0,0.00016438,2]
[402521553,1768695045042,-500.0,0.00016438,2]
[402521555,1768695045053,-500.0,0.00016438,2]
[402521557,1768695045063,-500.0,0.00016438,2]
[402521559,1768695045072,-500.0,0.00016438,2]
[402521561,1768695045082,-500.0,0.00016438,2]
[402521563,1768695045092,-500.0,0.00016438,2]
[402521565,1768695045102,-500.0,0.00016438,2]
[402521567,1768695045112,-500.0,0.00016438,2]
[402521569,1768695045122,-253.51681414,0.00016438,2]
[402521571,1768695045131,-500.0,0.00016438,2]
[402521573,1768695045141,-500.0,0.00016438,2]
[402521575,1768695045150,-500.0,0.00016438,2]
[402521577,1768695045159,-500.0,0.00016438,2]
[402521579,1768695045169,-500.0,0.00016438,2]
[402521581,1768695045179,-500.0,0.00016438,2]
[402521584,1768695045189,-500.0,0.00016438,2]
[402521586,1768695045198,-500.0,0.00016438,2]
[402521587,1768695045208,-500.0,0.00016438,2]
[402521590,1768695045218,-500.0,0.00016438,2]
[402521591,1768695045227,-500.0,0.00016438,2]
[402521594,1768695045237,-500.0,0.00016438,2]
[402521596,1768695045247,-500.0,0.00016438,2]
[402521598,1768695045256,-500.0,0.00016438,2]
[402521600,1768695045265,-500.0,0.00016438,2]
[402521602,1768695045275,-500.0,0.00016438,2]
[402521604,1768695045284,-633.51,0.00016438,2]
[402521606,1768695045294,-500.0,0.00016438,2]
[402521608,1768695045304,-502.23072788,0.00016438,2]
[402521610,1768695045313,-501.51,0.00016438,2]
[402521612,1768695045322,-698.66,0.00016438,2]
[402521614,1768695045332,-500.0,0.00016438,2]
[402521616,1768695045341,-500.0,0.00016438,2]
[402521617,1768695045350,-799.28,0.00016438,2]
[402521619,1768695045358,-500.0,0.00016438,2]
[402521621,1768695045368,-500.0,0.00016438,2]
[402521623,1768695045377,-500.0,0.00016438,2]
[402521625,1768695045386,-876.14,0.00016438,2]
[402521627,1768695045396,-542.57,0.00016438,2]
[402521629,1768695045405,-522.83,0.00016438,2]
[402521631,1768695045414,-500.0,0.00016438,2]
[402521633,1768695045424,-500.0,0.00016438,2]
[402521649,1768695045559,-556.84,0.00016438,2]
[402521651,1768695045569,-500.0,0.00016438,2]
[402521653,1768695045579,-500.0,0.00016438,2]
[402521655,1768695045588,-500.0,0.00016438,2]
[402521657,1768695045598,-500.0,0.00016438,2]
[402521660,1768695045607,-500.0,0.00016438,2]
[402521661,1768695045617,-500.0,0.00016438,2]
[402521664,1768695045627,-500.0,0.00016438,2]
[402521666,1768695045636,-1029.07,0.00016438,2]
[402521668,1768695045646,-500.0,0.00016438,2]
[402521670,1768695045655,-500.0,0.00016438,2]
[402521672,1768695045664,-500.0,0.00016438,2]
[402521674,1768695045674,-202.63037912,0.00016438,2]
[402521676,1768695045683,-500.0,0.00016438,2]
[402521678,1768695045692,-500.0,0.00016438,2]
[402521680,1768695045702,-500.0,0.00016438,2]
[402521682,1768695045711,-500.0,0.00016438,2]
[402521684,1768695045721,-500.0,0.00016438,2]
[402521686,1768695045730,-500.0,0.00016438,2]
[402521687,1768695045739,-500.0,0.00016438,2]
[402521689,1768695045749,-500.0,0.00016438,2]
[402521691,1768695045758,-500.0,0.00016438,2]
[402521693,1768695045767,-500.0,0.00016438,2]
[402521695,1768695045776,-500.0,0.00016438,2]
[402521697,1768695045786,-500.0,0.00016438,2]
[402521699,1768695045795,-500.0,0.00016438,2]
[402521701,1768695045805,-450.0,0.00016438,2]
[402521704,1768695045815,-627.38,0.00016438,2]
[402521705,1768695045824,-954.55,0.00016438,2]
[402521708,1768695045833,-617.46,0.00016438,2]
[402521710,1768695045843,-581.26,0.00016438,2]
[402521711,1768695045852,-500.0,0.00016438,2]
[402521714,1768695045862,-969.26,0.00016438,2]
[402521715,1768695045871,-500.0,0.00016438,2]
[402521718,1768695045881,-717.02,0.00016438,2]
[402521720,1768695045890,-500.0,0.00016438,2]
[402521721,1768695045900,-500.0,0.00016438,2]
[402521723,1768695045909,-521.08,0.00016438,2]
[402521725,1768695045918,-500.0,0.00016438,2]
[402521727,1768695045927,-500.0,0.00016438,2]
[402521729,1768695045937,-500.0,0.00016438,2]
[402521731,1768695045946,-500.0,0.00016438,2]
[402521733,1768695045956,-500.0,0.00016438,2]
[402521735,1768695045965,-540.47,0.00016438,2]
[402521737,1768695045974,-500.0,0.00016438,2]
[402521739,1768695045984,-500.0,0.00016438,2]
[402521741,1768695045996,-500.0,0.00016438,2]
[402521743,1768695046006,-500.0,0.00016438,2]
[402521745,1768695046015,-500.0,0.00016438,2]
[402521747,1768695046026,-500.0,0.00016438,2]
[402521749,1768695046036,-500.0,0.00016438,2]
[402521751,1768695046046,-500.0,0.00016438,2]
[402521753,1768695046055,-529.46,0.00016438,2]
[402521755,1768695046065,-883.39,0.00016438,2]
[402521757,1768695046074,-500.0,0.00016438,2]
[402521759,1768695046084,-589.2,0.00016438,2]
[402521761,1768695046093,-1301.39,0.00016438,2]
[402521763,1768695046103,-541.81,0.00016438,2]
[402521765,1768695046113,-1058.01,0.00016438,2]
[402521767,1768695046123,-500.0,0.00016438,2]
[402521770,1768695046133,-500.0,0.00016438,2]
[402521772,1768695046142,-785.22,0.00016438,2]
[402521774,1768695046151,-807.95,0.00016438,2]
[402521776,1768695046161,-508.36097285,0.00016438,2]
[402521778,1768695046170,-554.66,0.00016438,2]
[402521780,1768695046180,-770.89,0.00016438,2]
[402521782,1768695046190,-505.01054415,0.00016438,2]
[402521784,1768695046201,-500.0,0.00016438,2]
[402521787,1768695046212,-500.0,0.00016438,2]
[402521789,1768695046222,-500.0,0.00016438,2]
[402521791,1768695046231,-500.0,0.00016438,2]
[402521793,1768695046241,-500.0,0.00016438,2]
[402521795,1768695046250,-500.0,0.00016438,2]
[402521797,1768695046259,-500.0,0.00016438,2]
[402521799,1768695046269,-500.0,0.00016438,2]
[402521800,1768695046278,-500.0,0.00016438,2]
[402521802,1768695046287,-500.0,0.00016438,2]
[402521804,1768695046297,-500.0,0.00016438,2]
[402521807,1768695046306,-500.0,0.00016438,2]
[402521809,1768695046315,-500.0,0.00016438,2]
[402521811,1768695046324,-1136.87,0.00016438,2]
[402521812,1768695046335,-500.0,0.00016438,2]
[402521814,1768695046344,-1476.58,0.00016438,2]
[402521816,1768695046354,-500.0,0.00016438,2]
[402521819,1768695046363,-520.23,0.00016438,2]
[402521820,1768695046372,-500.0,0.00016438,2]
[402521822,1768695046382,-500.0,0.00016438,2]
[402521824,1768695046391,-1217.98,0.00016438,2]
[402521827,1768695046401,-500.0,0.00016438,2]
[402521829,1768695046411,-500.0,0.00016438,2]
[402521831,1768695046420,-500.0,0.00016438,2]
[402521833,1768695046430,-500.0,0.00016438,2]
[402521835,1768695046439,-500.0,0.00016438,2]
[402521837,1768695046448,-500.0,0.00016438,2]
[402521839,1768695046457,-500.0,0.00016438,2]
[402521841,1768695046466,-500.0,0.00016438,2]
[402521843,1768695046475,-500.0,0.00016438,2]
[402521845,1768695046485,-545.71,0.00016438,2]
[402521847,1768695046495,-500.0,0.00016438,2]
[402521849,1768695046505,-500.0,0.00016438,2]
[402521850,1768695046514,-500.0,0.00016438,2]
[402521852,1768695046523,-205.694885,0.00016438,2]
[402521854,1768695046533,-528.1,0.00016438,2]
[402521857,1768695046542,-500.0,0.00016438,2]
[402521858,1768695046552,-1043.27,0.00016438,2]
[402521861,1768695046561,-500.0,0.00016438,2]
[402521862,1768695046570,-631.48,0.00016438,2]
[402521864,1768695046579,-914.57,0.00016438,2]
[402521866,1768695046589,-1082.4,0.00016438,2]
[402521868,1768695046598,-500.0,0.00016438,2]
[402521871,1768695046607,-500.0,0.00016438,2]
[402521872,1768695046616,-500.0,0.00016438,2]
[402521874,1768695046629,-529.42,0.00016438,2]
[402521876,1768695046643,-971.57,0.00016438,2]
[402521878,1768695046653,-500.0,0.00016438,2]
[402521880,1768695046673,-500.0,0.00016438,2]
[402521882,1768695046691,-500.0,0.00016438,2]
[402521884,1768695046710,-1048.91,0.00016438,2]
[402521886,1768695046720,-500.0,0.00016438,2]
[402521889,1768695046730,-618.26,0.00016438,2]
[402521891,1768695046739,-500.0,0.00016438,2]
[402521892,1768695046748,-500.0,0.00016438,2]
[402521894,1768695046758,-500.0,0.00016438,2]
[402521896,1768695046767,-558.2,0.00016438,2]
[402521899,1768695046778,-500.0,0.00016438,2]
[402521901,1768695046787,-711.42,0.00016438,2]
[402521903,1768695046796,-558.21,0.00016438,2]
[402521904,1768695046806,-500.0,0.00016438,2]
[402521907,1768695046815,-500.0,0.00016438,2]
[402521909,1768695046825,-500.0,0.00016438,2]
[402521911,1768695046834,-500.0,0.00016438,2]
[402521912,1768695046843,-875.08,0.00016438,2]
[402521915,1768695046853,-500.0,0.00016438,2]
[402521917,1768695046863,-500.0,0.00016438,2]
[402521919,1768695046872,-500.0,0.00016438,2]
[402521921,1768695046882,-500.0,0.00016438,2]
[402521923,1768695046891,-500.0,0.00016438,2]
[402521925,1768695046901,-500.0,0.00016438,2]
[402521927,1768695046910,-453.5727634,0.00016438,2]
[402521929,1768695046920,-521.74,0.00016438,2]
[402521931,1768695046931,-500.0,0.00016438,2]
[402521933,1768695046941,-653.13,0.00016438,2]
[402521935,1768695046951,-500.0,0.00016438,2]
[402521936,1768695046960,-609.4,0.00016438,2]
[402521938,1768695046969,-500.0,0.00016438,2]
[402521940,1768695046979,-500.0,0.00016438,2]
[402521941,1768695046991,-500.0,0.00016438,2]
[402521943,1768695047001,-500.0,0.00016438,2]
[402521945,1768695047010,-548.19,0.00016438,2]
[402521947,1768695047021,-500.0,0.00016438,2]
[402521949,1768695047031,-500.0,0.00016438,2]
[402521950,1768695047040,-500.0,0.00016438,2]
[402521952,1768695047050,-500.0,0.00016438,2]
[402521954,1768695047061,-500.0,0.00016438,2]
[402521956,1768695047071,-500.0,0.00016438,2]
[402521958,1768695047080,-500.0,0.00016438,2]
[402521959,1768695047090,-572.79,0.00016438,2]
[402521961,1768695047099,-500.0,0.00016438,2]
[402521963,1768695047108,-659.73,0.00016438,2]
[402521965,1768695047118,-615.24,0.00016438,2]
[402521966,1768695047127,-500.0,0.00016438,2]
[402521968,1768695047137,-500.0,0.00016438,2]
[402521970,1768695047146,-500.0,0.00016438,2]
[402521972,1768695047156,-500.0,0.00016438,2]
[402521973,1768695047165,-600.0,0.00016438,2]
[402521975,1768695047176,-815.0,0.00016438,2]
[402521977,1768695047185,-1000.0,0.00016438,2]
[402521979,1768695047194,-150.0,0.00016445,2]
[402521980,1768695047204,-150.0,0.00016445,2]
[402521982,1768695047213,-150.0,0.00016448,2]
[402521984,1768695047225,-150.0,0.0001645,2]
[402521986,1768695047235,-150.0,0.00016457,2]
[402521988,1768695047245,-150.0,0.00016486,2]
[402521990,1768695047254,-150.0,0.000165,2]
[402521991,1768695047264,-150.0,0.000165,2]
[402521993,1768695047273,-150.0,0.000165,2]
[402521995,1768695047286,-150.0,0.0001651,2]
[402521997,1768695047295,-500.0,0.00016521,2]
[402521999,1768695047305,-1064.52,0.00016521,2]
[402522001,1768695047315,-150.0,0.00016527,2]
[402522002,1768695047327,-150.0,0.00016527,2]
[402522004,1768695047337,-631.0,0.00016528,2]
[402522006,1768695047347,-150.0,0.0001655,2]
[402522008,1768695047358,-150.0,0.00016552,2]
[402522010,1768695047367,-150.0,0.00016552,2]
[402522011,1768695047377,-150.0,0.00016555,2]
[402522013,1768695047387,-150.0,0.00016568,2]
[402522015,1768695047396,-166.67,0.00016572,2]
[402522016,1768695047405,-150.0,0.00016572,2]
[402522018,1768695047415,-1000.0,0.00016575,2]
[402522020,1768695047426,-331.99,0.00016593,2]
[402522022,1768695047437,-150.0,0.000166,2]
[402522024,1768695047447,-150.0,0.000166,2]
[402522026,1768695047457,-150.0,0.000166,2]
[402522028,1768695047466,-150.0,0.00016609,2]
[402522030,1768695047476,-150.0,0.00016609,2]
[402522031,1768695047486,-402.71870006,0.00016611,2]
[402522033,1768695047496,-10000.0,0.00016612,2]
[402522035,1768695047505,-10061.28187665,0.00016624,2]
[402522037,1768695047515,-150.0,0.00016634,2]
[402522039,1768695047525,-150.0,0.0001665,2]
[402522041,1768695047534,-150.0,0.0001665,2]
[402522042,1768695047543,-150.0,0.0001665,2]
[402522044,1768695047552,-150.0,0.0001665,2]
[402522046,1768695047562,-151.0,0.0001665,2]
[402522048,1768695047571,-151.0,0.0001665,2]
[402522050,1768695047580,-631.0,0.00016675,2]
[402522052,1768695047590,-631.0,0.00016677,2]
[402522054,1768695047600,-150.0,0.00016686,2]
[402522056,1768695047609,-150.0,0.00016691,2]
[402522057,1768695047618,-150.0,0.00016691,2]
[402522060,1768695047632,-150.0,0.00016697,2]
[402522062,1768695047642,-500.0,0.00016699,2]
[402522064,1768695047651,-457.38368944,0.00016699,2]
[402522065,1768695047661,-500.0,0.00016699,2]
[402522067,1768695047670,-500.0,0.00016699,2]
[402522069,1768695047681,-500.0,0.00016699,2]
[402522071,1768695047690,-500.0,0.00016699,2]
[402522099,1768695048010,-500.0,0.00016699,2]
[402522102,1768695048039,-497.33591243,0.00016699,2]
[402522104,1768695048048,-150.0,0.000167,2]
[402522106,1768695048060,-150.0,0.000167,2]
[402522108,1768695048070,-150.0,0.000167,2]
[402522110,1768695048079,-798.96991452,0.00016702,2]
[402522112,1768695048092,-596.5452182,0.00016711,2]
[402522114,1768695048102,-500.0,0.00016711,2]
[402522116,1768695048111,-500.0,0.00016711,2]
[402522117,1768695048121,-300.0,0.00016711,2]
[402522119,1768695048130,-666.0,0.00016711,2]
[402522121,1768695048140,-1000.0,0.00016712,2]
[402522123,1768695048149,-500.0,0.00016712,2]
[402522125,1768695048159,-500.0,0.00016712,2]
[402522127,1768695048169,-500.0,0.00016712,2]
[402522129,1768695048178,-500.0,0.00016712,2]
[402522131,1768695048189,-500.0,0.00016712,2]
[402522133,1768695048198,-500.0,0.00016712,2]
[402522134,1768695048208,-500.0,0.00016712,2]
[402522136,1768695048218,-500.0,0.00016712,2]
[402522138,1768695048228,-500.0,0.00016712,2]
[402522140,1768695048238,-500.0,0.00016712,2]
[402522142,1768695048249,-502.36672556,0.00016712,2]
[402522144,1768695048259,-500.0,0.00016712,2]
[402522146,1768695048269,-500.0,0.00016712,2]
[402522148,1768695048279,-500.0,0.00016712,2]
[402522150,1768695048289,-500.0,0.00016712,2]
[402522152,1768695048299,-500.0,0.00016712,2]
[402522154,1768695048309,-602.44,0.00016712,2]
[402522156,1768695048319,-500.0,0.00016712,2]
[402522158,1768695048328,-500.0,0.00016712,2]
[402522160,1768695048339,-500.0,0.00016712,2]
[402522161,1768695048349,-500.0,0.00016712,2]
[402522163,1768695048358,-500.0,0.00016712,2]
[402522165,1768695048368,-500.0,0.00016712,2]
[402522167,1768695048377,-500.0,0.00016712,2]
[402522169,1768695048386,-500.0,0.00016712,2]
[402522171,1768695048396,-500.0,0.00016712,2]
[402522173,1768695048405,-500.0,0.00016712,2]
[402522174,1768695048415,-500.0,0.00016712,2]
[402522176,1768695048424,-500.0,0.00016712,2]
[402522178,1768695048434,-500.0,0.00016712,2]
[402522180,1768695048444,-500.0,0.00016712,2]
[402522182,1768695048453,-500.0,0.00016712,2]
[402522184,1768695048463,-500.0,0.00016712,2]
[402522186,1768695048472,-500.0,0.00016712,2]
[402522189,1768695048492,-500.0,0.00016712,2]
[402522190,1768695048502,-500.0,0.00016712,2]
[402522192,1768695048512,-500.0,0.00016712,2]
[402522194,1768695048522,-500.0,0.00016712,2]
[402522196,1768695048531,-500.0,0.00016712,2]
[402522198,1768695048542,-500.0,0.00016712,2]
[402522200,1768695048552,-500.0,0.00016712,2]
[402522202,1768695048561,-500.0,0.00016712,2]
[402522204,1768695048571,-500.0,0.00016712,2]
[402522206,1768695048580,-500.0,0.00016712,2]
[402522207,1768695048590,-500.0,0.00016712,2]
[402522209,1768695048600,-500.0,0.00016712,2]
[402522211,1768695048610,-500.0,0.00016712,2]
[402522213,1768695048620,-500.0,0.00016712,2]
[402522214,1768695048630,-601.47,0.00016712,2]
[402522216,1768695048640,-500.0,0.00016712,2]
[402522218,1768695048650,-500.0,0.00016712,2]
[402522220,1768695048660,-500.0,0.00016712,2]
[402522221,1768695048670,-500.0,0.00016712,2]
[402522223,1768695048680,-500.0,0.00016712,2]
[402522225,1768695048690,-500.37,0.00016712,2]
[402522227,1768695048700,-611.15411435,0.00016712,2]
[402522229,1768695048709,-500.0,0.00016712,2]
[402522230,1768695048721,-500.0,0.00016712,2]
[402522232,1768695048731,-500.0,0.00016712,2]
[402522234,1768695048740,-500.0,0.00016712,2]
[402522236,1768695048750,-500.0,0.00016712,2]
[402522237,1768695048760,-500.0,0.00016712,2]
[402522239,1768695048770,-500.0,0.00016712,2]
[402522241,1768695048780,-500.0,0.00016712,2]
[402522243,1768695048790,-500.0,0.00016712,2]
[402522245,1768695048800,-500.0,0.00016712,2]
[402522247,1768695048810,-542.95,0.00016712,2]
[402522249,1768695048819,-500.0,0.00016712,2]
[402522250,1768695048829,-500.0,0.00016712,2]
[402522252,1768695048839,-500.0,0.00016712,2]
[402522254,1768695048849,-1004.69,0.00016712,2]
[402522256,1768695048858,-500.0,0.00016712,2]
[402522258,1768695048868,-500.0,0.00016712,2]
[402522259,1768695048877,-500.0,0.00016712,2]
[402522261,1768695048887,-500.0,0.00016712,2]
[402522263,1768695048896,-596.17,0.00016712,2]
[402522265,1768695048906,-500.0,0.00016712,2]
[402522267,1768695048915,-500.0,0.00016712,2]
[402522269,1768695048925,-500.0,0.00016712,2]
[402522270,1768695048935,-680.01,0.00016712,2]
[402522272,1768695048945,-507.69910647,0.00016712,2]
[402522274,1768695048955,-500.0,0.00016712,2]
[402522276,1768695048966,-368.15910156,0.00016712,2]
[402522278,1768695048976,-668.29,0.00016712,2]
[402522280,1768695048988,-565.97,0.00016712,2]
[402522282,1768695048998,-500.0,0.00016712,2]
[402522284,1768695049008,-589.86,0.00016712,2]
[402522285,1768695049017,-500.0,0.00016712,2]
[402522287,1768695049027,-500.0,0.00016712,2]
[402522289,1768695049037,-502.76,0.00016712,2]
[402522291,1768695049046,-505.24,0.00016712,2]
[402522293,1768695049056,-581.83043932,0.00016712,2]
[402522294,1768695049066,-460.1842355,0.00016712,2]
[402522296,1768695049076,-500.0,0.00016712,2]
[402522298,1768695049086,-500.0,0.00016712,2]
[402522300,1768695049095,-500.0,0.00016712,2]
[402522302,1768695049105,-500.0,0.00016712,2]
[402522303,1768695049114,-749.4,0.00016712,2]
[402522305,1768695049124,-500.0,0.00016712,2]
[402522307,1768695049133,-500.0,0.00016712,2]
[402522309,1768695049142,-556.33,0.00016712,2]
[402522311,1768695049152,-534.83,0.00016712,2]
[402522313,1768695049161,-500.0,0.00016712,2]
[402522314,1768695049171,-151.0,0.00016712,2]
[402522316,1768695049180,-500.0,0.00016712,2]
[402522318,1768695049190,-500.0,0.00016712,2]
[402522320,1768695049200,-500.0,0.00016712,2]
[402522322,1768695049210,-537.63,0.00016712,2]
[402522324,1768695049220,-500.0,0.00016712,2]
[402522326,1768695049230,-500.0,0.00016712,2]
[402522327,1768695049239,-500.0,0.00016712,2]
[402522329,1768695049249,-500.0,0.00016712,2]
[402522331,1768695049259,-500.0,0.00016712,2]
[402522333,1768695049269,-500.0,0.00016712,2]
[402522335,1768695049278,-500.0,0.00016712,2]
[402522337,1768695049288,-624.58386868,0.00016712,2]
[402522339,1768695049297,-500.0,0.00016712,2]
[402522340,1768695049308,-500.0,0.00016712,2]
[402522342,1768695049317,-500.0,0.00016712,2]
[402522344,1768695049328,-500.0,0.00016712,2]
[402522346,1768695049338,-500.0,0.00016712,2]
[402522348,1768695049348,-650.67,0.00016712,2]
[402522350,1768695049357,-300.77388184,0.00016712,2]
[402522352,1768695049366,-500.0,0.00016712,2]
[402522353,1768695049376,-627.5,0.00016712,2]
[402522355,1768695049386,-500.0,0.00016712,2]
[402522357,1768695049395,-500.0,0.00016712,2]
[402522359,1768695049405,-500.0,0.00016712,2]
[402522361,1768695049415,-500.0,0.00016712,2]
[402522363,1768695049426,-500.0,0.00016712,2]
[402522364,1768695049435,-751.51,0.00016712,2]
[402522366,1768695049445,-786.47,0.00016712,2]
[402522368,1768695049456,-500.0,0.00016712,2]
[402522370,1768695049466,-500.0,0.00016712,2]
[402522372,1768695049475,-500.0,0.00016712,2]
[402522374,1768695049485,-500.0,0.00016712,2]
[402522376,1768695049495,-500.0,0.00016712,2]
[402522378,1768695049505,-500.0,0.00016712,2]
[402522379,1768695049516,-292.80064464,0.00016712,2]
[402522381,1768695049526,-500.0,0.00016712,2]
[402522383,1768695049535,-500.0,0.00016712,2]
[402522385,1768695049545,-673.75,0.00016712,2]
[402522387,1768695049556,-379.81605847,0.00016712,2]
[402522389,1768695049566,-500.0,0.00016712,2]
[402522391,1768695049576,-451.1984505,0.00016712,2]
[402522393,1768695049586,-500.0,0.00016712,2]
[402522395,1768695049596,-500.0,0.00016712,2]
[402522396,1768695049607,-356.38799227,0.00016712,2]
[402522398,1768695049617,-500.0,0.00016712,2]
[402522400,1768695049627,-500.0,0.00016712,2]
[402522402,1768695049636,-500.0,0.00016712,2]
[402522404,1768695049646,-500.0,0.00016712,2]
[402522406,1768695049655,-500.0,0.00016712,2]
[402522408,1768695049665,-627.71,0.00016712,2]